fUST/lending_fUST_20250605
["ID","MTS","AMOUNT","RATE_DAILY","PERIOD"]
[364477182,1749112241756,-929.82,0.00020363,2]
[364477183,1749112241766,-962.0,0.0002042,2]
[364477185,1749112241776,-440.0,0.00020547,2]
[364477187,1749112241787,-440.0,0.00020547,2]
[364477189,1749112241797,-440.0,0.00020547,2]
[364477191,1749112241807,-640.15,0.00020547,2]
[364477193,1749112241816,-440.0,0.00020547,2]
[364477195,1749112241826,-440.0,0.00020547,2]
[364477197,1749112241835,-585.91,0.00020547,2]
[364477199,1749112241844,-440.0,0.00020547,2]
[364477201,1749112241854,-440.0,0.00020547,2]
[364477203,1749112241863,-440.0,0.00020547,2]
[364477205,1749112241873,-1380.75679883,0.00020555,3]
[364477207,1749112241883,-2793.49,0.000206,2]
[364477209,1749112241893,-440.0,0.00020637,2]
[364477210,1749112241903,-929.82,0.00020637,2]
[364477212,1749112241913,-151.0,0.000207,2]
[364477214,1749112241923,-166.01542,0.000207,2]
[364477216,1749112241933,-288.97680483,0.0002077,2]
[364477218,1749112241944,-1380.75679883,0.00020797,4]
[364477220,1749112241954,-1037.03768734,0.00020808,2]
[364477222,1749112241964,-440.0,0.00020821,2]
[364477224,1749112241977,-440.0,0.00020821,2]
[364477226,1749112241988,-440.0,0.00020821,2]
[364477228,1749112241998,-640.15,0.00020821,2]
[364477230,1749112242008,-440.0,0.00020821,2]
[364477231,1749112242017,-440.0,0.00020821,2]
[364477233,1749112242026,-585.91,0.00020821,2]
[364477235,1749112242036,-440.0,0.00020821,2]
[364477237,1749112242045,-440.0,0.00020821,2]
[364477239,1749112242055,-440.0,0.00020821,2]
[364477241,1749112242064,-215.0738,0.00020868,2]
[364477243,1749112242074,-440.0,0.00020911,2]
[364477245,1749112242084,-929.82,0.00020911,2]
[364477247,1749112242093,-2225.0,0.0002092,2]
[364477249,1749112242106,-709.0,0.0002092,2]
[364477251,1749112242115,-405.0,0.0002092,2]
[364477253,1749112242125,-344.704112,0.00020938,2]
[364477255,1749112242134,-344.704112,0.00020938,2]
[364477256,1749112242143,-151.0,0.00020938,2]
[364477258,1749112242153,-151.0,0.00020938,2]
[364477260,1749112242162,-151.0,0.00020938,2]
[364477262,1749112242172,-151.0,0.00020938,2]
[364477264,1749112242181,-151.0,0.0002099,2]
[364477266,1749112242191,-321.31102092,0.00020999,2]
[364477268,1749112242200,-10005.69310184,0.00020999,2]
[364477270,1749112242210,-500.0,0.00020999,2]
[364477272,1749112242220,-500.0,0.00020999,2]
[364477274,1749112242232,-500.0,0.00020999,2]
[364477276,1749112242241,-500.0,0.00020999,2]
[364477278,1749112242251,-500.0,0.00020999,2]
[364477280,1749112242261,-500.0,0.00020999,2]
[364477282,1749112242271,-600.0,0.00020999,2]
[364477284,1749112242281,-500.0,0.00020999,2]
[364477285,1749112242290,-500.0,0.00020999,2]
[364477287,1749112242300,-500.0,0.00020999,2]
[364477289,1749112242310,-500.0,0.00020999,2]
[364477291,1749112242320,-299.23410574,0.00020999,2]
[364477293,1749112242330,-500.0,0.00020999,2]
[364477295,1749112242339,-500.0,0.00020999,2]
[364477297,1749112242349,-500.0,0.00020999,2]
[364477299,1749112242363,-500.0,0.00020999,2]
[364477301,1749112242373,-500.0,0.00020999,2]
[364477303,1749112242383,-500.0,0.00020999,2]
[364477305,1749112242395,-49308.27865203,0.00021,7]
[364477335,1749112242697,-0.00188513,0.0001863,2]
[364477402,1749112243655,-439.99811487,0.0001863,2]
[364477404,1749112243665,-85.23393604,0.00018904,2]
[364477725,1749112246835,-260.01765442,0.00018356,2]
[364479282,1749112263840,582.5,0.00025,120]
[364481054,1749113289670,239.621278,0.00013699,2]
[364481086,1749113433210,-5000.0,0.00016911,2]
[364481087,1749113433220,-1665.22,0.00017224,2]
[364481088,1749113433231,-1200.0,0.00018139,2]
[364481089,1749113433241,-300.0,0.0001814,2]
[364481090,1749113433251,-300.0,0.00018355,2]
[364481091,1749113433260,-300.0,0.00018355,2]
[364481092,1749113433270,-300.0,0.00018355,2]
[364481093,1749113433280,-300.0,0.00018355,2]
[364481094,1749113433289,-440.0,0.00018356,2]
[364481095,1749113433299,-542.39,0.00018356,2]
[364481096,1749113433309,-440.0,0.00018356,2]
[364481097,1749113433319,-440.0,0.00018356,2]
[364481098,1749113433329,-440.0,0.00018356,2]
[364481099,1749113433338,-440.0,0.00018356,2]
[364481100,1749113433349,-440.0,0.00018356,2]
[364481101,1749113433359,-609.57,0.00018356,2]
[364481102,1749113433369,-440.0,0.00018356,2]
[364481103,1749113433378,-440.0,0.00018356,2]
[364481104,1749113433387,-430.0,0.00018356,2]
[364481105,1749113433397,-418.06119413,0.00018356,2]
[364481107,1749113433543,-21.93880587,0.00018356,2]
[364481108,1749113433554,-440.0,0.00018356,2]
[364481109,1749113433564,-440.0,0.00018382,2]
[364481110,1749113433575,-440.0,0.00018382,2]
[364481111,1749113433585,-440.0,0.00018382,2]
[364481112,1749113433596,-440.0,0.00018382,2]
[364481113,1749113433606,-440.0,0.00018628,2]
[364481114,1749113433616,-440.0,0.00018628,2]
[364481115,1749113433626,-440.0,0.00018628,2]
[364481116,1749113433636,-440.0,0.00018628,2]
[364481117,1749113433645,-440.0,0.00018628,2]
[364481118,1749113433655,-440.0,0.00018628,2]
[364481119,1749113433665,-500.0,0.00018628,2]
[364481120,1749113433674,-440.0,0.00018628,2]
[364481121,1749113433684,-464.37,0.00018629,2]
[364481122,1749113433694,-440.0,0.00018629,2]
[364481123,1749113433703,-666.41,0.00018629,2]
[364481124,1749113433713,-440.0,0.00018629,2]
[364481125,1749113433722,-542.39,0.0001863,2]
[364481126,1749113433732,-440.0,0.0001863,2]
[364481127,1749113433742,-440.0,0.0001863,2]
[364481128,1749113433751,-440.0,0.0001863,2]
[364481129,1749113433761,-440.0,0.0001863,2]
[364481130,1749113433770,-609.57,0.0001863,2]
[364481131,1749113433781,-440.0,0.0001863,2]
[364481132,1749113433793,-440.0,0.0001863,2]
[364481133,1749113433802,-440.0,0.0001863,2]
[364481134,1749113433812,-440.0,0.0001863,2]
[364481135,1749113433823,-440.0,0.00018656,2]
[364481136,1749113433832,-440.0,0.00018656,2]
[364481137,1749113433842,-440.0,0.00018656,2]
[364481138,1749113433851,-440.0,0.00018656,2]
[364481139,1749113433861,-3330.45,0.0001879,2]
[364481140,1749113433871,-160.0,0.00018897,2]
[364481141,1749113433881,-423.7637613,0.00018897,2]
[364481142,1749113433891,-160.0,0.00018897,2]
[364481143,1749113433900,-160.0,0.00018898,2]
[364481144,1749113433910,-12675.11581177,0.00018898,2]
[364481145,1749113433919,-229.48950782,0.00018898,2]
[364481146,1749113433929,-160.0,0.00018898,2]
[364481147,1749113433938,-160.0,0.00018898,2]
[364481148,1749113433947,-842.5625,0.00018898,2]
[364481149,1749113433957,-212.94059491,0.00018898,2]
[364481150,1749113433967,-160.0,0.00018898,2]
[364481151,1749113433977,-1242.59877038,0.000189,2]
[364481152,1749113433987,-1292.74784636,0.000189,2]
[364481153,1749113433997,-440.0,0.00018902,2]
[364481154,1749113434007,-440.0,0.00018902,2]
[364481155,1749113434016,-440.0,0.00018902,2]
[364481156,1749113434026,-440.0,0.00018902,2]
[364481157,1749113434036,-440.0,0.00018902,2]
[364481158,1749113434045,-464.37,0.00018903,2]
[364481159,1749113434054,-440.0,0.00018903,2]
[364481160,1749113434064,-666.41,0.00018903,2]
[364481161,1749113434073,-500.0,0.00018903,2]
[364481162,1749113434083,-440.0,0.00018903,2]
[364481163,1749113434092,-542.39,0.00018904,2]
[364481164,1749113434101,-440.0,0.00018904,2]
[364481165,1749113434112,-440.0,0.00018904,2]
[364481166,1749113434122,-440.0,0.00018904,2]
[364481167,1749113434132,-609.57,0.00018904,2]
[364481168,1749113434141,-440.0,0.00018904,2]
[364481169,1749113434151,-440.0,0.00018904,2]
[364481170,1749113434160,-440.0,0.0001893,2]
[364481171,1749113434171,-440.0,0.0001893,2]
[364481172,1749113434181,-440.0,0.0001893,2]
[364481173,1749113434190,-440.0,0.0001893,2]
[364481174,1749113434199,-1242.59877031,0.00019107,2]
[364481175,1749113434209,-440.0,0.00019176,2]
[364481176,1749113434218,-440.0,0.00019176,2]
[364481177,1749113434228,-440.0,0.00019176,2]
[364481178,1749113434239,-440.0,0.00019176,2]
[364481179,1749113434249,-500.0,0.00019176,2]
[364481180,1749113434259,-464.37,0.00019177,2]
[364481181,1749113434269,-440.0,0.00019177,2]
[364481182,1749113434279,-666.41,0.00019177,2]
[364481183,1749113434289,-440.0,0.00019177,2]
[364481184,1749113434298,-542.39,0.00019178,2]
[364481185,1749113434308,-440.0,0.00019178,2]
[364481186,1749113434318,-440.0,0.00019178,2]
[364481187,1749113434329,-344.82288595,0.00019178,2]
[364481188,1749113434339,-440.0,0.00019178,2]
[364481189,1749113434348,-440.0,0.00019178,2]
[364481190,1749113434357,-609.57,0.00019178,2]
[364481191,1749113434367,-440.0,0.00019178,2]
[364481192,1749113434377,-440.0,0.00019178,2]
[364481193,1749113434387,-188.335457,0.00019178,2]
[364481194,1749113434396,-440.0,0.00019204,2]
[364481195,1749113434406,-440.0,0.00019204,2]
[364481196,1749113434415,-440.0,0.00019204,2]
[364481197,1749113434425,-440.0,0.00019204,2]
[364481198,1749113434434,-1242.59877031,0.00019314,2]
[364481199,1749113434444,-440.0,0.0001945,2]
[364481200,1749113434453,-440.0,0.0001945,2]
[364481201,1749113434463,-440.0,0.0001945,2]
[364481202,1749113434474,-464.37,0.00019451,2]
[364481203,1749113434483,-440.0,0.00019451,2]
[364481204,1749113434493,-479.39894076,0.00019451,2]
[364481205,1749113434510,-306.44505818,0.00018904,2]
[364481237,1749113438815,-133.55494182,0.00018904,2]
[364481238,1749113438825,-440.0,0.00019178,2]
[364481239,1749113438835,-187.01105924,0.00019451,2]
[364481240,1749113438844,-440.0,0.00019451,2]
[364481241,1749113438854,-542.39,0.00019452,2]
[364481242,1749113438863,-440.0,0.00019452,2]
[364481243,1749113438872,-440.0,0.00019452,2]
[364481244,1749113438881,-440.0,0.00019452,2]
[364481245,1749113438891,-609.57,0.00019452,2]
[364481246,1749113438900,-275.24264441,0.00019452,2]
[364481579,1749113443796,-5000.0,0.00019257,2]
[364481581,1749113443806,-64.27293281,0.00019452,2]
[364481583,1749113443815,-440.0,0.00019452,2]
[364481585,1749113443825,-440.0,0.00019478,2]
[364481587,1749113443834,-440.0,0.00019478,2]
[364481589,1749113443844,-440.0,0.00019478,2]
[364481591,1749113443854,-440.0,0.00019478,2]
[364481593,1749113443862,-207.4,0.00019499,2]
[364481595,1749113443872,-500.0,0.00019499,2]
[364481597,1749113443881,-500.0,0.00019499,2]
[364481599,1749113443890,-500.0,0.00019499,2]
[364481601,1749113443899,-500.0,0.00019499,2]
[364481603,1749113443908,-500.0,0.00019499,2]
[364481605,1749113443917,-119.45991527,0.00019499,2]
[364481607,1749113443929,-380.54008473,0.00019499,2]
[364481610,1749113443938,-297.88831594,0.00019499,2]
[364481891,1749113446902,-440.0,0.00018356,2]
[364481893,1749113446912,-440.0,0.00018382,2]
[364481895,1749113446922,-440.0,0.0001863,2]
[364481897,1749113446931,-440.0,0.00018656,2]
[364481899,1749113446941,-440.0,0.00018904,2]
[364481901,1749113446951,-440.0,0.0001893,2]
[364481903,1749113446962,-4.07232425,0.00019178,2]
[364481906,1749113446979,-435.92767575,0.00019178,2]
[364481908,1749113446991,-440.0,0.00019204,2]
[364481910,1749113447000,-440.0,0.00019452,2]
[364481912,1749113447010,-440.0,0.00019478,2]
[364481914,1749113447020,-202.11168406,0.00019499,2]
[364481916,1749113447029,-214.55764596,0.00019499,2]
[364482466,1749114153833,5570.8093911,0.00025,120]
[364482468,1749114184867,183.0,0.00016,2]
[364482485,1749114359705,227.640214,0.00013699,2]
[364482552,1749114631863,-5000.0,0.00016231,2]
[364482553,1749114631873,-1000.0,0.0001724,2]
[364482554,1749114631883,-1574.39,0.00017826,2]
[364482555,1749114631894,-1000.0,0.00017853,2]
[364482556,1749114631903,-1267.79193535,0.000179,2]
[364482557,1749114631915,-300.0,0.00018132,2]
[364482558,1749114631924,-300.0,0.00018132,2]
[364482559,1749114631934,-300.0,0.00018132,2]
[364482560,1749114631944,-300.0,0.00018137,2]
[364482561,1749114631954,-1267.79193517,0.00018141,2]
[364482562,1749114631965,-1034.06630009,0.00018355,2]
[364482563,1749114631974,-2597.43609273,0.00018355,2]
[364482564,1749114631984,-159.39929833,0.00018356,2]
[364482565,1749114631994,-430.0,0.00018356,2]
[364482566,1749114632003,-430.0,0.00018356,2]
[364482567,1749114632014,-440.0,0.00018356,2]
[364482568,1749114632024,-440.0,0.00018356,2]
[364482569,1749114632033,-440.0,0.00018356,2]
[364482570,1749114632044,-440.0,0.00018356,2]
[364482571,1749114632053,-440.0,0.00018356,2]
[364482572,1749114632063,-430.0,0.00018356,2]
[364482573,1749114632072,-440.0,0.00018356,2]
[364482574,1749114632082,-430.0,0.00018356,2]
[364482575,1749114632092,-430.0,0.00018356,2]
[364482576,1749114632101,-430.0,0.00018356,2]
[364482577,1749114632110,-254.3847957,0.00018356,2]
[364482578,1749114632120,-430.0,0.00018356,2]
[364482579,1749114632130,-499.05685102,0.00018356,2]
[364482580,1749114632139,-432.08277355,0.00018356,2]
[364482581,1749114632149,-489.40458389,0.00018356,2]
[364482582,1749114632159,-430.0,0.00018356,2]
[364482583,1749114632168,-430.0,0.00018356,2]
[364482584,1749114632178,-238.62658928,0.00018356,2]
[364482585,1749114632193,-430.0,0.00018356,2]
[364482586,1749114632203,-493.13815954,0.00018356,2]
[364482587,1749114632213,-440.0,0.00018356,2]
[364482588,1749114632222,-430.0,0.00018356,2]
[364482589,1749114632233,-370.0,0.00018356,2]
[364482590,1749114632243,-263.80560514,0.00018356,2]
[364482591,1749114632252,-444.76230826,0.00018356,2]
[364482592,1749114632263,-310.0,0.00018356,2]
[364482593,1749114632272,-321.35248654,0.00018356,2]
[364482594,1749114632284,-108.64751346,0.00018356,2]
[364482595,1749114632293,-414.75248654,0.00018356,2]
[364482628,1749114637949,-25.24751346,0.00018356,2]
[364482630,1749114637959,-440.0,0.00018356,2]
[364482632,1749114637970,-430.0,0.00018356,2]
[364482634,1749114637979,-430.0,0.00018356,2]
[364482636,1749114637988,-312.66864403,0.00018356,2]
[364482638,1749114637998,-430.0,0.00018356,2]
[364482640,1749114638008,-430.0,0.00018356,2]
[364482642,1749114638018,-440.0,0.00018356,2]
[364482644,1749114638027,-440.0,0.00018356,2]
[364482646,1749114638036,-440.0,0.00018356,2]
[364482648,1749114638045,-440.0,0.00018356,2]
[364482650,1749114638055,-440.0,0.00018356,2]
[364482652,1749114638064,-430.0,0.00018356,2]
[364482654,1749114638073,-440.0,0.00018356,2]
[364482656,1749114638082,-440.0,0.00018356,2]
[364482658,1749114638091,-108.68878327,0.00018356,2]
[364482660,1749114638104,-331.31121673,0.00018356,2]
[364482662,1749114638113,-440.0,0.00018356,2]
[364482665,1749114638122,-49.23556788,0.00018356,2]
[364482667,1749114638134,-380.76443212,0.00018356,2]
[364482669,1749114638142,-440.0,0.00018356,2]
[364482671,1749114638151,-440.0,0.00018356,2]
[364482673,1749114638160,-440.0,0.00018356,2]
[364482675,1749114638170,-440.0,0.00018356,2]
[364482677,1749114638179,-430.0,0.00018356,2]
[364482679,1749114638191,-558.19976358,0.00018356,2]
[364482681,1749114638201,-124.71787706,0.00018356,2]
[364482683,1749114638212,-305.28212294,0.00018356,2]
[364482685,1749114638222,-440.0,0.00018356,2]
[364482687,1749114638232,-430.0,0.00018356,2]
[364482689,1749114638241,-440.0,0.00018356,2]
[364482691,1749114638250,-440.0,0.00018356,2]
[364482693,1749114638260,-440.0,0.00018356,2]
[364482695,1749114638270,-440.0,0.00018356,2]
[364482697,1749114638279,-440.0,0.00018356,2]
[364482699,1749114638288,-430.0,0.00018356,2]
[364482701,1749114638297,-430.0,0.00018356,2]
[364482703,1749114638307,-440.0,0.00018356,2]
[364482705,1749114638316,-440.0,0.00018356,2]
[364482707,1749114638325,-440.0,0.00018356,2]
[364482709,1749114638334,-440.0,0.00018356,2]
[364482711,1749114638343,-430.0,0.00018356,2]
[364482713,1749114638353,-440.0,0.00018356,2]
[364482715,1749114638362,-430.0,0.00018356,2]
[364482717,1749114638371,-440.0,0.00018356,2]
[364482731,1749114638490,-440.0,0.00018356,2]
[364482733,1749114638501,-506.88,0.00018356,2]
[364482735,1749114638510,-440.0,0.00018356,2]
[364482737,1749114638520,-758.17,0.00018356,2]
[364482739,1749114638529,-440.0,0.00018356,2]
[364482741,1749114638538,-711.34,0.00018356,2]
[364482743,1749114638547,-440.0,0.00018356,2]
[364482745,1749114638556,-188.70873862,0.00018356,2]
[364482747,1749114638565,-440.0,0.00018356,2]
[364482749,1749114638574,-440.0,0.00018356,2]
[364482751,1749114638584,-440.0,0.00018356,2]
[364482753,1749114638593,-440.0,0.00018356,2]
[364482755,1749114638602,-440.0,0.00018356,2]
[364482756,1749114638612,-440.0,0.00018356,2]
[364482758,1749114638620,-440.0,0.00018356,2]
[364482761,1749114638629,-440.0,0.00018356,2]
[364482763,1749114638638,-496.54650798,0.00018356,2]
[364482766,1749114638647,-440.0,0.00018356,2]
[364482770,1749114638656,-500.0,0.00018356,2]
[364482772,1749114638667,-430.0,0.00018356,2]
[364482775,1749114638675,-440.0,0.00018356,2]
[364482777,1749114638685,-440.0,0.00018356,2]
[364482779,1749114638694,-430.0,0.00018381,2]
[364482781,1749114638703,-440.0,0.00018381,2]
[364482783,1749114638712,-440.0,0.00018381,2]
[364482785,1749114638722,-430.0,0.00018381,2]
[364482787,1749114638731,-440.0,0.00018381,2]
[364482789,1749114638740,-430.0,0.00018381,2]
[364482791,1749114638750,-440.0,0.00018381,2]
[364482793,1749114638759,-430.0,0.00018381,2]
[364482795,1749114638768,-440.0,0.00018381,2]
[364482797,1749114638777,-921.01,0.00018381,2]
[364482799,1749114638787,-500.0,0.00018381,2]
[364482801,1749114638795,-1267.79193517,0.00018383,2]
[364482803,1749114638804,-1267.79193517,0.00018624,2]
[364482805,1749114638813,-500.0,0.00018626,2]
[364482807,1749114638823,-440.0,0.00018627,2]
[364482808,1749114638832,-440.0,0.00018627,2]
[364482810,1749114638841,-440.0,0.00018627,2]
[364482812,1749114638850,-430.0,0.00018627,2]
[364482814,1749114638859,-440.0,0.00018627,2]
[364482816,1749114638869,-440.0,0.00018627,2]
[364482818,1749114638879,-440.0,0.00018627,2]
[364482820,1749114638888,-434.56068407,0.00018627,2]
[364482822,1749114638897,-440.0,0.00018627,2]
[364482824,1749114638907,-306.38224862,0.00018627,2]
[364482826,1749114638916,-213.84600202,0.00018627,2]
[364482828,1749114638926,-440.0,0.00018627,2]
[364482830,1749114638935,-440.0,0.00018627,2]
[364482832,1749114638945,-450.0,0.00018627,2]
[364482834,1749114638955,-430.0,0.00018627,2]
[364482836,1749114638966,-420.0,0.0001863,2]
[364482838,1749114638975,-440.0,0.0001863,2]
[364482840,1749114638985,-440.0,0.0001863,2]
[364482842,1749114638994,-430.0,0.0001863,2]
[364482844,1749114639004,-430.35418715,0.0001863,2]
[364482846,1749114639017,-440.0,0.0001863,2]
[364482848,1749114639032,-440.0,0.0001863,2]
[364482850,1749114639041,-440.0,0.0001863,2]
[364482852,1749114639050,-440.0,0.0001863,2]
[364482854,1749114639059,-229.79950307,0.0001863,2]
[364482856,1749114639069,-440.0,0.0001863,2]
[364482858,1749114639078,-432.19075775,0.0001863,2]
[364482860,1749114639087,-440.0,0.0001863,2]
[364482862,1749114639096,-440.0,0.0001863,2]
[364482864,1749114639106,-430.0,0.0001863,2]
[364482866,1749114639115,-234.12,0.0001863,2]
[364482868,1749114639124,-534.95,0.0001863,2]
[364482871,1749114639143,-440.0,0.0001863,2]
[364482873,1749114639155,-420.0,0.0001863,2]
[364482875,1749114639164,-440.0,0.0001863,2]
[364482877,1749114639174,-440.0,0.0001863,2]
[364482879,1749114639186,-440.0,0.0001863,2]
[364482881,1749114639195,-440.0,0.0001863,2]
[364482883,1749114639206,-570.18,0.0001863,2]
[364482885,1749114639215,-440.0,0.0001863,2]
[364482887,1749114639225,-440.0,0.0001863,2]
[364482889,1749114639234,-440.0,0.0001863,2]
[364482891,1749114639244,-440.0,0.0001863,2]
[364482893,1749114639254,-440.0,0.0001863,2]
[364482895,1749114639268,-440.0,0.0001863,2]
[364482897,1749114639278,-506.88,0.0001863,2]
[364482899,1749114639288,-440.0,0.0001863,2]
[364482901,1749114639297,-758.17,0.0001863,2]
[364482903,1749114639308,-440.0,0.0001863,2]
[364482905,1749114639318,-711.34,0.0001863,2]
[364482907,1749114639328,-440.0,0.0001863,2]
[364482909,1749114639337,-196.17107756,0.0001863,2]
[364482911,1749114639347,-440.0,0.0001863,2]
[364482913,1749114639357,-440.0,0.0001863,2]
[364482915,1749114639367,-440.0,0.0001863,2]
[364482917,1749114639377,-440.0,0.0001863,2]
[364482919,1749114639386,-420.0,0.0001863,2]
[364482921,1749114639396,-440.0,0.0001863,2]
[364482923,1749114639406,-440.0,0.0001863,2]
[364482925,1749114639415,-440.0,0.0001863,2]
[364482927,1749114639425,-440.0,0.0001863,2]
[364482929,1749114639435,-420.0,0.0001863,2]
[364482931,1749114639444,-500.0,0.00018654,2]
[364482933,1749114639454,-500.0,0.00018654,2]
[364482935,1749114639464,-500.0,0.00018654,2]
[364482937,1749114639474,-500.0,0.00018654,2]
[364482939,1749114639483,-500.0,0.00018654,2]
[364482941,1749114639493,-500.0,0.00018654,2]
[364482943,1749114639502,-500.0,0.00018654,2]
[364482945,1749114639513,-500.0,0.00018654,2]
[364482947,1749114639523,-500.0,0.00018654,2]
[364482949,1749114639533,-500.0,0.00018654,2]
[364482951,1749114639542,-500.0,0.00018654,2]
[364482953,1749114639551,-500.0,0.00018654,2]
[364482955,1749114639561,-500.0,0.00018654,2]
[364482957,1749114639570,-500.0,0.00018654,2]
[364482959,1749114639579,-500.0,0.00018654,2]
[364482961,1749114639590,-168.93082196,0.00018654,2]
[364482963,1749114639599,-368.75234028,0.00018654,2]
[364482965,1749114639609,-500.0,0.00018654,2]
[364482967,1749114639618,-500.0,0.00018654,2]
[364482969,1749114639628,-500.0,0.00018654,2]
[364482971,1749114639638,-579.6699474,0.00018654,2]
[364482973,1749114639647,-500.0,0.00018654,2]
[364482975,1749114639657,-500.0,0.00018654,2]
[364482977,1749114639667,-500.0,0.00018654,2]
[364482979,1749114639676,-500.0,0.00018654,2]
[364482981,1749114639686,-500.0,0.00018654,2]
[364482983,1749114639695,-500.0,0.00018654,2]
[364482985,1749114639705,-500.0,0.00018654,2]
[364482987,1749114639715,-500.0,0.00018654,2]
[364482989,1749114639725,-500.0,0.00018654,2]
[364482991,1749114639734,-500.0,0.00018654,2]
[364482992,1749114639744,-500.0,0.00018654,2]
[364482993,1749114639759,-500.0,0.00018654,2]
[364482994,1749114639770,-500.0,0.00018654,2]
[364482995,1749114639780,-500.0,0.00018654,2]
[364482996,1749114639790,-500.0,0.00018654,2]
[364482998,1749114639800,-500.0,0.00018654,2]
[364483000,1749114639810,-500.0,0.00018654,2]
[364483002,1749114639821,-500.0,0.00018654,2]
[364483004,1749114639831,-500.0,0.00018654,2]
[364483006,1749114639841,-500.0,0.00018654,2]
[364483008,1749114639851,-500.0,0.00018654,2]
[364483010,1749114639861,-194.04424061,0.00018654,2]
[364483012,1749114639871,-500.0,0.00018654,2]
[364483014,1749114639881,-500.0,0.00018654,2]
[364483016,1749114639891,-500.0,0.00018654,2]
[364483018,1749114639901,-500.0,0.00018654,2]
[364483020,1749114639910,-500.0,0.00018654,2]
[364483022,1749114639920,-500.0,0.00018654,2]
[364483024,1749114639929,-500.0,0.00018654,2]
[364483026,1749114639939,-500.0,0.00018654,2]
[364483028,1749114639949,-440.0,0.00018655,2]
[364483030,1749114639958,-430.0,0.00018655,2]
[364483032,1749114639970,-440.0,0.00018655,2]
[364483034,1749114639980,-440.0,0.00018655,2]
[364483036,1749114639990,-440.0,0.00018655,2]
[364483038,1749114639999,-921.01,0.00018655,2]
[364483040,1749114640012,-6726.51407083,0.00018852,3]
[364483042,1749114640022,-12161.95790203,0.00018852,2]
[364483044,1749114640032,-160.0,0.00018853,2]
[364483046,1749114640042,-160.0,0.00018853,2]
[364483048,1749114640052,-423.7637613,0.00018853,2]
[364483050,1749114640062,-212.94059491,0.00018853,2]
[364483052,1749114640073,-842.5625,0.00018853,2]
[364483054,1749114640083,-160.0,0.00018853,2]
[364483056,1749114640093,-160.0,0.00018853,2]
[364483058,1749114640102,-521.72436883,0.00018854,2]
[364483061,1749114640118,-12153.39144294,0.00018854,2]
[364483063,1749114640128,-229.48950782,0.00018854,2]
[364483065,1749114640137,-1267.79193517,0.00018866,2]
[364483067,1749114640147,-420.0,0.00018901,2]
[364483069,1749114640157,-440.0,0.00018901,2]
[364483071,1749114640166,-440.0,0.00018901,2]
[364483073,1749114640176,-430.47161281,0.00018901,2]
[364483075,1749114640188,-440.0,0.00018901,2]
[364483077,1749114640198,-260.81204356,0.00018901,2]
[364483079,1749114640207,-568.25406986,0.00018901,2]
[364483081,1749114640219,-432.70255786,0.00018901,2]
[364483083,1749114640228,-440.0,0.00018901,2]
[364483085,1749114640238,-440.0,0.00018904,2]
[364483087,1749114640248,-440.0,0.00018904,2]